Cogmind - Beta 17 @@@ ROGUE MODE // 2026.06.27 @ 15:37:10 Player: Venar246 Result: Destroyed by G-34 Mercenary with Small Laser Performance ------------- Evolutions (1) 500 Regions Visited (2) 400 Robots Destroyed (37) 185 Value Destroyed (760) 760 Prototype IDs (1) 20 Alien Tech Used (0) 0 Bonus (0) 0 TOTAL SCORE: 1865 Bonus ------- None Cogmind --------- Core Integrity 0/400 Matter 190/300 Energy 265/265 System Corruption 0% Temperature Cool (6) Movement Walking (190) Ox1 Location -9/Materials Parts ------- > --- POWER (1) -------- Improved Ion Engine > --- PROPULSION (4) --- Aluminum Leg > --- UTILITY (2) ------ Small Storage Unit Advanced Targeting Computer > --- WEAPON (2) ------- Beam Rifle Improved Light Cannon > --- INVENTORY (8) ---- VSS Leg VSS Leg VSS Leg VSS Leg Advanced Targeting Computer Advanced Targeting Computer Light Armor Plating Heavy Flail Peak State ------------ > --- POWER ------------ Light Ion Engine > --- PROPULSION ------- Aluminum Leg Aluminum Leg Aluminum Leg Improved Aluminum Leg > --- UTILITY ---------- Small Storage Unit Advanced Targeting Computer > --- WEAPON ----------- Improved Assault Rifle Improved Assault Rifle > --- INVENTORY -------- VSS Leg VSS Leg VSS Leg VSS Leg Large Matter Pod Advanced Targeting Computer Advanced Targeting Computer Heavy Flail [Rating: 18] Favorites ----------- Power Light Ion Engine Engine Light Ion Engine Propulsion Aluminum Leg Leg Aluminum Leg Utility Small Storage Unit Storage Small Storage Unit Processor Advanced Targeting Computer Weapon Light Assault Rifle Energy Gun Particle Gun Ballistic Gun Light Assault Rifle Ballistic Cannon Improved Light Cannon Impact Weapon Heavy Flail Build | -11 -10 -9 ------- Run | Yrd Mat Mat Slots Evolved 2 | . . 2 Power . | . . . Propulsion 2 | . . 2 Utility . | . . . Weapon . | . . . Parts Attached 34 | 5 4 25 Power 5 | 1 1 3 Engine 5 | 1 1 3 Core . | . . . Reactor . | . . . Propulsion 13 | 2 2 9 Treads . | . . . Leg 13 | 2 2 9 Wheel . | . . . Hover . | . . . Flight . | . . . Utility 3 | . 1 2 Device . | . . . Storage 2 | . 1 1 Processor 1 | . . 1 Hackware . | . . . Protection . | . . . Artifact . | . . . Weapon 13 | 2 . 11 Energy Gun 4 | . . 4 Energy Cannon . | . . . Ballistic Gun 7 | 2 . 5 Ballistic Cannon 1 | . . 1 Launcher . | . . . Special Weapon . | . . . Impact Weapon 1 | . . 1 Slashing Weapon . | . . . Piercing Weapon . | . . . Special Melee Weapon . | . . . Unidentified Prototypes 1 | . . 1 Parts Lost 11 | . . 11 Power 2 | . . 2 Propulsion 6 | . . 6 Utility . | . . . Weapon 3 | . . 3 Highest Loss Streak 6 | . . 6 To Critical Strikes . | . . . Average Backups 6 | . 3 7 Power . | . . . Propulsion 2 | . . 3 Utility 2 | . . 2 Weapon 1 | . 1 1 Tool/Special . | . . . Unused Backups 6 | . . 6 Power . | . . . Propulsion . | . . . Utility 3 | . . 3 Weapon 3 | . . 3 Tool/Special . | . . . Average Slot Usage (%) 85 | . 85 86 Engine 10 | . 14 9 Leg 33 | . 28 34 Storage 11 | . 14 11 Processor 7 | . . 9 Energy Gun 6 | . . 9 Ballistic Gun 13 | . 28 9 Ballistic Cannon 1 | . . 1 Peak Build Rating 18 | 5 6 18 Average Rating 11 | 4 6 14 On Entrance 3 | . 5 6 Avg Prop Armor Cover (%) . | . . . Naked Turns . | . . . Heaviest Build 19 | 5 12 19 Greatest Support 48 | 20 20 48 Greatest Overweight (x) 1 | . . 1 Average Overweight (x) . | . . . Largest Inventory Capacity 8 | 5 8 8 Average Capacity 7 | 5 8 8 Most Carried 8 | 2 8 8 Average Carried 6 | . 3 7 Final Capacity 8 | 5 8 8 Final Carried 8 | 2 8 8 Class Distribution -------------------- 69% | Mutant 30% | Scavenger-Mutant Dominant Class ---------------- Mutant | -10/Materials Mutant | -9/Materials Resources | -11 -10 -9 ----------- Run | Yrd Mat Mat Matter Collected 972 | 106 327 539 Remotely . | . . . Salvage Created 1085 | . 270 815 Parts 80 | . 17 63 Haulers Intercepted 3 | . 1 2 Recyclers Shooed . | . . . Parts Field Recycled . | . . . Retrieved Matter . | . . . Parts Self-Destructed . | . . . Prevented . | . . . Parts Restored . | . . . Kills | -11 -10 -9 ------- Run | Yrd Mat Mat Combat Hostiles Destroyed 30 | . 7 23 Melee 1 | . . 1 Guns 25 | . 7 18 Cannons 2 | . . 2 Classes Destroyed 6 | . 3 3 Worker 3 | . . 3 Hauler 3 | . 1 2 Watcher 1 | . . 1 Swarmer 15 | . 3 12 Grunt 10 | . 4 6 Sentry 5 | . . 5 Best Kill Streak 10 | . 5 10 Combat Bots Only 9 | . 4 9 Max Kills in Single Turn 2 | . 1 2 Gunslinging 1 | . . 1 Exploded . | . . . Melee 1 | . . 1 Uniques/NPCs Destroyed . | . . . Combat | -11 -10 -9 -------- Run | Yrd Mat Mat Hostile Shots Fired 162 | . 33 129 Missed 36 | . 8 28 Hits 126 | . 25 101 Projectile 126 | . 25 101 Critical Strikes 2 | . . 2 Damage Taken 1665 | . 229 1436 Core 460 | . 52 408 Absorbed by Shields . | . . . Core Remaining (%) 89 | 100 79 . Volleys Fired 78 | . 23 55 Largest 2 | . 2 2 Hottest 130 | . 40 130 Shots Fired 151 | . 46 105 Gun 145 | . 46 99 Cannon 6 | . . 6 Launcher . | . . . Special . | . . . Kinetic 106 | . 46 60 Thermal 45 | . . 45 Explosive . | . . . Electromagnetic . | . . . Robot Hit Streak 11 | . 11 9 Robot Miss Streak 5 | . 5 3 Penetration Max . | . . . Secondary Targets 7 | . 3 4 Max Gunslinging Chain 1 | . 1 1 Shots Hit Robots 105 | . 29 76 Core Hits 46 | . 16 30 Critical Kills 1 | . . 1 Critical Parts Destroyed 1 | . . 1 Critical Strikes 4 | . . 4 Burn 1 | . . 1 Blast 1 | . . 1 Smash 2 | . . 2 Melee Attacks 6 | . . 6 Impact 6 | . . 6 Slashing . | . . . Piercing . | . . . Sneak Attacks 1 | . . 1 Combat Hostiles . | . . . Follow-up Attacks . | . . . Damage Inflicted 1803 | . 245 1558 Guns 1223 | . 238 985 Cannons 108 | . . 108 Explosions 147 | . . 147 Melee 309 | . . 309 Ramming 16 | . 7 9 Kinetic 862 | . 238 624 Thermal 469 | . . 469 Explosive 147 | . . 147 Electromagnetic . | . . . Impact 309 | . . 309 Slashing . | . . . Piercing . | . . . Highest Corruption . | . . . Average Corruption . | . . . Corruption Purged . | . . . Corruption Blocked . | . . . Overload Shots . | . . . Overflow Damage 113 | . . 113 Projectiles 3 | . . 3 Explosions 23 | . . 23 Melee 87 | . . 87 Knockbacks 3 | . . 3 Impact . | . . . Kinetic 3 | . . 3 Secondary . | . . . Self-Inflicted Damage 182 | . . 182 Shots 2 | . . 2 Rammed . | . . . Targets Rammed 4 | . 3 1 Kicked 4 | . 3 1 Crushed . | . . . Highest Temperature 567 | . 12 567 Average Temperature 159 | . 7 170 Received Heat Transfer 345 | . 48 297 Effects 8 | . . 8 Shutdowns 1 | . . 1 Energy Bleed 1 | . . 1 Matter Decay 3 | . . 3 Short Circuit 1 | . . 1 Damage (minor) 1 | . . 1 Damage (core) 1 | . . 1 Siege Activations . | . . . Martial Activations . | . . . Shielding Activations . | . . . Robots Disrupted . | . . . Combat Hostiles . | . . . Robots Corrupted 2 | . . 2 Combat Hostiles 1 | . . 1 Parts Fried 3 | . . 3 Impact Corruptions 3 | . . 3 Robots Melted 1 | . . 1 Combat Hostiles 1 | . . 1 Parts Melted 2 | . . 2 Heat Transferred 1184 | . . 1184 Parts Sabotaged . | . . . Parts Stolen . | . . . Parts Stripped . | . . . Power Chain Reactions . | . . . Alert | -11 -10 -9 ------- Run | Yrd Mat Mat Maximum Alert Level 1 | . . 1 Low Security (%) 66 | 100 100 54 Level 1 33 | . . 45 Level 2 . | . . . Level 3 . | . . . Level 4 . | . . . Level 5 . | . . . High Security . | . . . Max Security . | . . . Peak Influence 340 | . 117 340 Initial 40 | . . 40 Average 126 | . 43 160 Influence Increases 850 | . 167 683 Destroy 0b10 Robot/C 600 | . 140 460 Destroy 0b10 Robot/NC 35 | . 5 30 Destroy Leader 138 | . 22 116 Successful Hack 16 | . . 16 Disable Machine 30 | . . 30 Destroy Structure 31 | . . 31 Influence Decreases 540 | . 70 470 Entered New Map 57 | . . 57 Time Decay 376 | . 70 306 Lost Part 107 | . . 107 Squads Dispatched 4 | . 1 3 Investigation 2 | . 1 1 Extermination . | . . . Reinforcement 2 | . . 2 Assault . | . . . Garrison . | . . . Intercept . | . . . Searches Triggered . | . . . Construction Impeded . | . . . Haulers Reinforced . | . . . Active Scanning Responses . | . . . Cargo Convoy Interrupts . | . . . Stealth | -11 -10 -9 --------- Run | Yrd Mat Mat Distress Signals 3 | . . 3 Communications Jammed . | . . . Distress Signals . | . . . Times Spotted 48 | . 11 37 Peak Tracking Total 7 | . 6 7 Tactical Retreats . | . . . Traps | -11 -10 -9 ------- Run | Yrd Mat Mat Traps Triggered 4 | . 1 3 Indirectly . | . . . Trap Hack Attempts . | . . . Triggered . | . . . Disarmed . | . . . Reprogrammed . | . . . Reused . | . . . Traps Extracted . | . . . Installed . | . . . Triggered . | . . . Machines | -11 -10 -9 ---------- Run | Yrd Mat Mat Machines Disabled 2 | . . 2 Max in Single Turn 2 | . . 2 Machines Repaired . | . . . Machines Dismantled . | . . . Machines Sabotaged . | . . . Overloaded Fab Kills . | . . . Hacking | -11 -10 -9 --------- Run | Yrd Mat Mat Machines Accessed 2 | . . 2 Terminals 1 | . . 1 Fabricators . | . . . Repair Stations . | . . . Recycling Units . | . . . Scanalyzers 1 | . . 1 Garrison Access . | . . . Total Hacks 7 | . . 7 Successful 5 | . . 5 Failed 2 | . . 2 Catastrophic 1 | . . 1 Database Lockouts . | . . . Manual 3 | . . 3 Terminals 3 | . . 3 Fabricators . | . . . Repair Stations . | . . . Recycling Units . | . . . Scanalyzers 4 | . . 4 Garrison Access . | . . . Terminal Hacks 2 | . . 2 Part Schematic 2 | . . 2 Fabricator Hacks . | . . . Repair Station Hacks . | . . . Recycling Unit Hacks . | . . . Scanalyzer 3 | . . 3 Insert Component 2 | . . 2 Analyze 1 | . . 1 Garrison Access Hacks . | . . . Unauthorized Hacks . | . . . Terminals . | . . . Fabricators . | . . . Repair Stations . | . . . Recycling Units . | . . . Scanalyzers . | . . . Garrison Access . | . . . Data Cores Recovered . | . . . Used . | . . . Hacking Detections 2 | . . 2 Full Trace Events 2 | . . 2 Feedback Events . | . . . Feedback Blocked . | . . . Robot Schematics Acquired . | . . . Robots Built . | . . . Authchips . | . . . Time . | . . . Total Robot Build Rating . | . . . Part Schematics Acquired 3 | . . 3 Parts Built . | . . . Authchips . | . . . Time . | . . . Total Part Build Rating . | . . . Part Studies Acquired . | . . . Parts Repaired . | . . . Time . | . . . Parts Recycled . | . . . Recycled Matter . | . . . Retrieved Matter . | . . . Retrieved Components . | . . . Parts Scanalyzed 1 | . . 1 Part Schematics Acquired 1 | . . 1 Parts Damaged . | . . . Bothacking | -11 -10 -9 ------------ Run | Yrd Mat Mat Used RIF Installer . | . . . Robots Hacked . | . . . Non-combat . | . . . Combat . | . . . Robot Hacks Applied . | . . . Relay Couplers Released . | . . . Fabnet Peak Effective % . | . . . Robots Rewired . | . . . Allies Hacked . | . . . Hacks Repelled . | . . . Allies | -11 -10 -9 -------- Run | Yrd Mat Mat Total Allies . | . . . Largest Group . | . . . Highest-Rated Group . | . . . Highest-Rated Ally . | . . . Total Orders . | . . . Ally Attacks . | . . . Total Damage . | . . . Kills . | . . . Allies Corrupted . | . . . Allies Melted . | . . . Intel | -11 -10 -9 ------- Run | Yrd Mat Mat Active Infowar (turns) . | . . . Robot Analysis Total . | . . . Derelict Logs Recovered . | . . . Drone Launches . | . . . Drone Recoveries . | . . . Exploration | -11 -10 -9 ------------- Run | Yrd Mat Mat Turns Passed 1234 | 65 269 900 Spaces Moved 708 | 48 164 496 Core 7 | 2 . 5 Treads . | . . . Legs 701 | 46 164 491 Wheels . | . . . Hover . | . . . Flight . | . . . Fastest Speed 50 | 50 120 90 Average Speed 125 | 117 120 128 Slowest Speed 190 | 120 120 190 Overloaded Moves . | . . . Propulsion Burnouts . | . . . Robots Hopped . | . . . Potential Cave-ins . | . . . Cave-ins Triggered . | . . . Exploration Rate (%) 23 | 3 34 34 Regions Visited 2 Branch Regions . Pre-discovered Areas . | . . . Known Exits Taken . | . . . Unknown Exits Taken 2 | 1 1 . Scrap Searched . | . . . Spaces Dug . | . . . Terrain Destroyed 26 | . . 26 Melee . | . . . Projectile . | . . . AOE 26 | . . 26 Terrain Rammed . | . . . Walls Destroyed . | . . . Machines Disabled . | . . . Actions | -11 -10 -9 --------- Run | Yrd Mat Mat Total 898 | 54 197 647 Wait 19 | . . 19 Move 706 | 47 163 496 Hop . | . . . Pick Up 16 | 2 4 10 Fast Attach 25 | 5 . 20 Attach 8 | . 1 7 Detach 2 | . . 2 Swap 10 | . 3 7 Drop 22 | . . 22 Fire 78 | . 23 55 Melee 6 | . . 6 Ram . | . . . Kick 4 | . 3 1 Crush . | . . . Escape Stasis . | . . . Rewire 2 | . . 2 Trap . | . . . Miscellaneous . | . . . Route ------- -11/Scrapyard -10/Materials -9/Materials (discovered 2 exits: [*Mat] / [*Min]) History --------- Turn | Location | Event 24 | -11/Scrapyard | Discovered new exit (range 15) 66 | -11/Scrapyard | Entered Materials 303 | -10/Materials | Build established: Mutant 315 | -10/Materials | Discovered new exit (range 15) 335 | -10/Materials | Entered another Materials area 335 | -9/Materials | Evolved 2 slots: Propulsion x2 644 | -9/Materials | Destroyed 9 combat bots 773 | -9/Materials | Lost 3 parts (1n2w) 823 | -9/Materials | Discovered new exit (range 7) 1080 | -9/Materials | Core integrity fell below 50% 1085 | -9/Materials | Core integrity fell below 20% 1115 | -9/Materials | Lost 6 parts (1p4n1w) 1230 | -9/Materials | Discovered new exit (range 12) 1235 | -9/Materials | Destroyed by G-34 Mercenary with Small Laser Last Messages --------------- 01133_ K-01 Serf collects debris. 01138_ Destroyed Flight Unit. 01138_ S-10 Pest suffers critical hit (Blast). 01138_ S-10 Pest destroyed. 01140_ K-01 Serf collects debris. 01141_ S-10 Pest knocked back. 01141_ S-10 Pest destroyed. 01142_ K-01 Serf collects debris. 01144_ Acquired 21 matter. 01145_ K-01 Serf collects debris. 01148_ Acquired 4 matter. 01149_ K-01 Serf collects debris. 01150_ Acquired 28 matter. 01154_ K-01 Serf collects debris. 01154_ Acquired 2 matter. 01158_ K-01 Serf collects debris. 01163_ Acquired 14 matter. 01166_ K-01 Serf collects debris. 01184_ Kicked W-16 Scout. 01230_ EXIT=FOUND Map ----- +----------------------------------------------------+ | | | | | | | | | ?????????????????????????????????????????????????? | | ?????????????????????????????????????????????????? | | ?????????????????????????????????????????????????? | | ?????????????????????????????????????????????????? | | ?????????????????????????????????????????????????? | | ?????????????????????????????????????????????????? | | ?????????????????????????????????????????????????? | | ?????????????????????????????????????????????????? | | ?????????????????????????????????????????????????? | | ??????????????????????####???????????????????????? | | ??????????????????????# #??????????????????????? | | ??????????????????????# < #??????????????????????? | | ??????????????????????# #??????????????????????? | | ??????????????????????# +??????????????????????? | | ??????????????????????# #???????????????######## | | ??????????????????????# #???????????????# | | ?????????????????????## ##??????????????# | | ???????????+######+### #??????????????# | | ??????????? "" #??????????????# | | ?????????? k g T #??????????????# | | ?????????????? kg g #??????????????# | | ?????????????????????# @ #??????????????? | | ????????????????????####+#####??????????????? | | ????????????????????# #???????????????##"## | | ????????????????????# """ #???????????????# * | | ????????????????????# """ ################# = | | ????????????????????# """ + | | ????????????????????# ###################+# | | ????????????????????# #???????????????????? | | ????????????????????# ! "" #???????????????????? | | ????????????????????# S"" #???????????????????? | | ????????????????????# "" #???????????????????? | | ????????????????????####+#####???????????????????? | | ?????????????????????????????????????????????????# | | ?????????????????????????????????????????????????# | | ?????????????????????????????????????????????????# | | ?????????????????????????????????????????????????# | | ?????????????????????????????????????????????????# | | ?????????????????????????????????????????????????# | | ?????????????????????????????????????????????????# | | ?????????????????????????????????????????????????? | | ?????????????????????????????????????????????????? | | ?????????????????????????????????????????????????? | | ?????????????????????????????????????????????????? | | ?????????????????????????????????????????????????? | | ?????????????????????????????????????????????????? | +----------------------------------------------------+ Best States ------------- Heat Dissipation 28 Energy Generation 12 Energy Capacity 265 Matter Stores 306 Matter Capacity 450 Sight Range 16 Terrain Scan Density 10 Evasion (%) 55 Targeting Accuracy 8 Item Schematics ----------------- Imp. Aluminum Leg | -9/Materials | Hacked Imp. Targeting Computer | -9/Materials | Hacked Adv. Targeting Computer | -9/Materials | Scanalyzed Robot Schematics ------------------ None Fabricated ------------ Nothing Repaired ---------- Nothing Studied --------- None Alien Tech Used ----------------- None Achievements -------------- Sprinter Well Done Challenges ------------ None Game ------ Seed ConstructIonicHoverbase Manual? 0 Play Time 00:15:24 Cumulative 38.8 hours Start 2026.06.24 @ 00:28:09 End 2026.06.27 @ 15:37:10 Sessions 3 Manual Loads 0 Difficulty Rogue Special Mode None Game No. 78 Rogue 78 Adventurer 0 Explorer 0 Win Type - Total 1 Types 1/0/0/0/0/0/0/0/0/0 Lore% 17 Gallery% 30 Achievement% 21 Wizard Run 0 Options --------- Layout 1 ASCII 0 Keyboard 0 Movement Arrows Keybinds 0 Fullscreen 1 Font 32/SmallcapsGlow Map View 50x35 Zoom Use 0% Tactical HUD 1 Map Filters NONE Filters NONE Steam 1 RUN: 70b137af-d43f-4449-bec8-2f5be4c6bad1